[Event "Israeli Team-ch 2023"]
[Site "Petah Tikva"]
[Date "2023.01.13"]
[Round "2.34"]
[White "Iliaguev, Nisim"]
[Black "Bitensky, Igor"]
[Result "1/2-1/2"]
[ECO "A49"]
[WhiteElo "2390"]
[BlackElo "2370"]
[Annotator "TA"]
[PlyCount "94"]
[EventDate "2023.01.13"]
[EventCountry "ISR"]
[SourceTitle "playchess.com"]
[Source "ChessBase"]
[SourceQuality "1"]
[TimeControl "40/5400+30:1800+30"]

{[%evp 14,94,28,24,36,3,3,0,8,-3,37,22,33,0,20,29,51,32,67,57,77,68,72,70,94,75,98,73,137,135,171,143,134,119,150,144,149,134,146,146,159,146,152,152,154,141,134,138,143,0,0,0,0,0,0,0,0,0,0,0,0,0,0,0,0,0,0,-1,-1,-4,0,0,0,0,0,0,0,0,0,0,0,0,0]} 1. d4 {[%emt 0:00:15]} Nf6 {[%emt 0:00:27]} 2. Nf3 {[%emt 0:00:12]} g6 {[%emt 0:00:20]} 3. g3 {[%emt 0:00:48]} Bg7 {[%emt 0:00:06]} 4. Bg2 {[%emt 0:00:07]} d6 {[%emt 0:01:18]} 5. O-O {[%emt 0:00:09]} O-O {[%emt 0:00:17]} 6. b3 {[%emt 0:00:14]} a5 {[%emt 0:03:58] 6...e5 gains popularity.} 7. a4 {[%emt 0:03:36]} c6 {[%emt 0:02:35]} 8. Bb2 {[%emt 0:01:38]} Ne4 {[%emt 0:05:44] [#] A49: 1 d4 Nf6 2 Nf3 g6 3 g3: Anti-King's Indian systems.} 9. c4 $146 {[%emt 0:03:24]} ({Predecessor:} 9. Nfd2 Nxd2 10. Nxd2 d5 11. e4 dxe4 12. Nxe4 Na6 13. c3 Be6 14. Re1 Re8 15. Nd2 Qc7 16. h4 {1-0 Alonso Rosell,A (2559)-Movsziszian,K (2514) Catalunya-chT Gp1 2019 (4.1)}) 9... f5 {[%emt 0:06:28][%cal Oe7e5]} 10. e3 {[%emt 0:05:02]} Nd7 {[%emt 0:05:12]} 11. Qc2 {[%emt 0:00:49]} Qe8 {[%emt 0:10:19]} 12. Nbd2 {[%emt 0:04:58]} Ndf6 {[%emt 0:04:00]} (12... Nxd2 {feels hotter.} 13. Qxd2 e5 14. e4 fxe4 15. Ng5 exd4 16. Bxd4 Bxd4 17. Qxd4 Qe5) 13. d5 {[%emt 0:08:48]} Nxd2 {[%emt 0:05:57]} 14. Nxd2 {[%emt 0:01:25]} Bd7 {[%emt 0:04:37]} 15. Rac1 {[%emt 0:02:00]} Kh8 {[%emt 0:10:36]} 16. Rfe1 {[%emt 0:14:14][%cal Bf1e1,Be1c1,Bc1c7][%mdl 32]} cxd5 {[%emt 0:03:12]} 17. cxd5 {[%emt 0:06:15]} b5 {[%emt 0:00:02]} 18. axb5 {[%emt 0:01:11]} Rc8 {[%emt 0:00:48] Wards off b6} 19. Qb1 {[%emt 0:06:30] b6 is the strong threat.} Bxb5 {[%emt 0:00:08]} 20. Qa1 {[%emt 0:01:36]} Rxc1 {[%emt 0:08:47]} (20... Kg8 $142) 21. Rxc1 $16 {[%emt 0:00:27]} a4 {[%emt 0:01:18]} 22. bxa4 {[%emt 0:00:08]} Bxa4 {[%emt 0:00:01]} 23. e4 {[%emt 0:00:17]} fxe4 {[%emt 0:10:46]} 24. Nxe4 {[%emt 0:00:02]} ({Reject} 24. Bxe4 $6 Qa8 $11) 24... Bd7 {[%emt 0:01:19]} 25. Rc7 $1 {[%emt 0:04:12] And now Bxf6 would win.} Bf5 {[%emt 0:00:23] [#]} 26. Ng5 $1 {[%emt 0:07:42]} Nh5 {[%emt 0:01:49]} 27. Bxg7+ {[%emt 0:05:17]} Nxg7 {[%emt 0:00:02]} 28. Qa7 {[%emt 0:01:10] White is much more active.} Qb8 {[%emt 0:03:43]} 29. Qxb8 {[%emt 0:05:40]} ({Weaker is} 29. Rxe7 Qb1+ 30. Bf1 Bd3 31. Nf7+ Kg8 32. Nh6+ Kh8 33. Nf7+ Kg8 34. Nh6+ Kh8 35. Nf7+ $11) 29... Rxb8 {[%emt 0:00:01]} 30. h3 {[%emt 0:00:08]} ({But not} 30. Rxe7 $6 Rb1+ 31. Bf1 Bd3 32. Nf7+ Kg8 33. Nh6+ Kh8 34. Nf7+ Kg8 35. Nh6+ Kh8 36. Nf7+ $11) 30... Re8 {[%emt 0:02:05] [#]} 31. Bf1 {[%emt 0:04:44]} (31. g4 $1 $16 {[%cal Rg4f5]}) 31... Kg8 $1 $11 {[%emt 0:07:29] The position is equal.} 32. g4 {[%emt 0:02:17][%cal Bg3g4,Bg4f5,Bf5g6,Bg6g7][%mdl 32]} h6 {[%emt 0:00:00]} 33. gxf5 {[%emt 0:00:41] Hoping for f6.} hxg5 {[%emt 0:00:01]} 34. fxg6 {[%emt 0:00:11][%mdl 4096] Endgame KRB-KRN} Nh5 {[%emt 0:01:30]} 35. Bb5 {[%emt 0:03:12]} Rb8 {[%emt 0:00:01]} 36. Bd3 {[%emt 0:05:31]} Kf8 {[%emt 0:02:28]} 37. Be4 {[%emt 0:01:23]} Rb4 {[%emt 0:00:36]} 38. f3 {[%emt 0:01:43]} Nf6 {[%emt 0:00:24]} 39. g7+ {[%emt 0:00:45]} Kf7 {[%emt 0:00:29]} 40. Kg2 {[%emt 0:00:49]} Rb2+ {[%emt 0:00:41]} 41. Kg3 {[%emt 0:30:58]} Rb3 {[%emt 0:07:44]} 42. Bf5 {[%emt 0:00:00]} Nh5+ {[%emt 0:01:41]} 43. Kg4 {[%emt 0:00:00]} Nxg7 {[%emt 0:00:06]} 44. Be4 {[%emt 0:00:00]} Ne8 {[%emt 0:00:56]} 45. Rc8 {[%emt 0:00:00]} Nf6+ {[%emt 0:02:49]} 46. Kxg5 {[%emt 0:00:00]} Nxe4+ {[%emt 0:00:19]} 47. fxe4 {[%emt 0:00:00]} Rxh3 {[%emt 0:20:28] Black escapes into a draw.   Weighted Error Value: White=0.09 (flawless) /Black=0.10 (very precise)} 1/2-1/2

[Event "Israeli Team-ch 2023"]
[Site "Petah Tikva"]
[Date "2023.01.13"]
[Round "2.35"]
[White "Galburd, Yan"]
[Black "Kochavi, Ori"]
[Result "1-0"]
[ECO "B12"]
[WhiteElo "2430"]
[BlackElo "2396"]
[Annotator "TA"]
[PlyCount "131"]
[EventDate "2023.01.13"]
[EventCountry "ISR"]
[SourceTitle "playchess.com"]
[Source "ChessBase"]
[SourceQuality "1"]
[TimeControl "40/5400+30:1800+30"]

{[%evp 10,131,11,9,18,12,12,10,68,57,59,31,37,18,34,0,0,0,-6,-25,0,-18,-10,0,-10,-11,7,6,8,10,27,-47,-50,-77,-79,-64,-98,-94,-94,-90,-96,-88,-87,-122,-81,-131,-92,-118,-45,-34,-47,-58,-56,-56,-40,-106,-91,-120,-46,-88,-44,-39,-19,-32,45,43,225,201,264,253,207,0,0,0,0,-28,-24,-68,0,-73,-57,-173,-189,-162,-129,-310,-284,-323,-257,-315,-155,-374,-376,-382,-335,-401,-129,-556,-306,-297,-296,-295,-270,-973,625,592,477,545,29966,29937,29985,29986,29986,29987,29989,29990,29990,29991,29991,29992,29995,29994,29994,29995]} 1. e4 {[%emt 0:00:02]} c6 {[%emt 0:00:03]} 2. d4 {[%emt 0:00:13]} d5 {[%emt 0:00:43]} 3. e5 {[%emt 0:00:26]} Bf5 {[%emt 0:01:25]} 4. Nd2 {[%emt 0:00:18]} e6 {[%emt 0:00:04]} 5. Nb3 {[%emt 0:00:06]} Nd7 {[%emt 0:02:59]} 6. Nf3 {[%emt 0:02:52]} Be4 {[%emt 0:00:03] 6...Qc7 is a critical line. B12: Caro-Kann: Advance Variation.} 7. Be2 {[%emt 0:03:23]} c5 {[%emt 0:00:12]} 8. c3 {[%emt 0:02:21] [#]} c4 $146 {[%emt 0:00:49]} (8... cxd4 $11 9. cxd4 (9. Nbxd4 Bc5 $11) 9... Ne7) ({Predecessor:} 8... cxd4 9. cxd4 Bb4+ 10. Bd2 Bxd2+ 11. Qxd2 Ne7 12. O-O h6 13. Ne1 Nc6 14. Bd3 Bxd3 15. Nxd3 {½-½ Fedorov,A (2532)-Petrosyan,M (2611) Cheliabinsk Panchenko Memorial op-A 2021 (7)}) 9. Nbd2 $14 {[%emt 0:00:56] Strongly threatening Nxe4.} Bg6 {[%emt 0:00:04]} 10. h4 {[%emt 0:06:37]} h6 {[%emt 0:06:21]} 11. h5 {[%emt 0:04:23]} Bh7 {[%emt 0:02:01]} 12. Nf1 {[%emt 0:01:52]} b5 {[%emt 0:03:20]} 13. g4 {[%emt 0:01:21]} b4 {[%emt 0:09:34]} 14. Bd2 {[%emt 0:10:37]} Qa5 {[%emt 0:05:29]} 15. Ng3 {[%emt 0:08:04]} (15. g5 $5 {[%cal Rg5g6]}) 15... bxc3 {[%emt 0:00:50]} 16. Bxc3 {[%emt 0:00:51]} (16. bxc3 Ba3 17. g5 hxg5 18. Nxg5 Bb2 19. Nxh7 Bxa1 20. Qxa1 Rxh7 $17) 16... Bb4 {[%emt 0:00:07]} 17. Qd2 {[%emt 0:00:58]} Bxc3 {[%emt 0:01:09]} (17... Rb8 $5 {[%cal Rb4c3]}) 18. bxc3 {[%emt 0:00:05]} (18. Qxc3 Qxc3+ 19. bxc3 Ne7 $15) 18... Rb8 {[%emt 0:11:59]} 19. O-O {[%emt 0:01:16]} Ne7 {[%emt 0:07:51]} 20. Rfc1 {[%emt 0:00:24]} (20. Nh4 $11) 20... Qa3 $15 {[%emt 0:02:27]} 21. Nh4 {[%emt 0:18:36]} Rb2 {[%emt 0:02:46]} 22. Qe3 {[%emt 0:00:38]} Rxa2 {[%emt 0:00:45]} 23. Rxa2 {[%emt 0:01:05]} Qxa2 {[%emt 0:00:44]} 24. g5 {[%emt 0:00:36]} hxg5 {[%emt 0:01:53]} 25. Qxg5 {[%emt 0:00:06]} Qb2 {[%emt 0:00:09]} 26. Bd1 {[%emt 0:04:52]} Nb6 {[%emt 0:02:35]} 27. Bc2 {[%emt 0:07:33]} Bd3 {[%emt 0:06:25]} 28. Nf3 {[%emt 0:00:28]} Kd7 {[%emt 0:04:39]} (28... Bxc2 $17 29. Qd2 Nf5 30. Rxc2 (30. Nxf5 exf5 31. Rxc2 Qb1+ 32. Qc1 Qxc1+ 33. Rxc1 Na4 $17) 30... Qb1+ 31. Qc1 Qxc1+ 32. Rxc1 Nxg3 33. fxg3 Na4) 29. Kg2 {[%emt 0:04:58]} Rb8 {[%emt 0:06:21]} (29... Bxc2 {simplifies} 30. Qd2 Qa3 31. Rxc2 Nc6) 30. Ne1 {[%emt 0:02:25]} Bxc2 {[%emt 0:00:23]} (30... Qxc3 $2 31. Bxd3 Qa3 32. Bc2 $16) 31. Rxc2 {[%emt 0:00:11]} Qb1 {[%emt 0:00:13]} 32. Rc1 {[%emt 0:05:54]} (32. Kf1 $15 Rg8 33. Rc1) 32... Qh7 $1 $17 {[%emt 0:00:24]} 33. Ra1 {[%emt 0:00:18]} Nc6 {[%emt 0:05:21]} (33... Nbc8 $1 $17 34. Nf3 Rb3) 34. Qf4 $15 {[%emt 0:01:12]} Rf8 {[%emt 0:00:07]} 35. Qc1 {[%emt 0:04:48]} Kc7 {[%emt 0:02:19]} 36. Nf3 {[%emt 0:00:42]} Qh6 {[%emt 0:02:36]} ({Black should try} 36... Qg8 $15) 37. Ng5 $1 $14 {[%emt 0:00:44][%mdl 1024] White has compensation.} Qh8 $2 {[%emt 0:04:57]} (37... Re8 $14) 38. Qa3 $18 {[%emt 0:01:57]} Nc8 {[%emt 0:00:43]} 39. Qc5 {[%emt 0:01:10]} Kb7 {[%emt 0:01:57] [#] Inhibits Ra6.} 40. h6 $2 {[%emt 0:04:38]} gxh6 $11 {[%emt 0:01:03]} 41. Nh7 {[%emt 0:30:30][%mdl 64] Deflection} Rd8 {[%emt 0:31:40]} 42. Nf6 {[%emt 0:00:22]} Qg7 {[%emt 0:03:42]} 43. Qa3 {[%emt 0:00:00]} (43. Qb5+ {seems wilder.} Nb6 44. Ra2 h5 45. Qa6+) 43... Qg6 {[%emt 0:00:00]} (43... Nb6 $15) 44. Rh1 {[%emt 0:00:00]} (44. Qa6+ $11 Kc7 45. Ra5 Nxa5 46. Qxa5+ Nb6 47. Qxa7+ Kc6 48. Qe7) 44... Nb6 {[%emt 0:00:00]} (44... N8e7 {with more complications.} 45. Ra1 h5 46. Qc5 Nc8) 45. Rh4 {[%emt 0:00:00]} (45. Qb2 $15) 45... Qc2 $1 $19 {[%emt 0:00:00]} 46. Rxh6 {[%emt 0:00:00]} Qb3 {[%emt 0:00:00]} 47. Qc1 {[%emt 0:00:00]} (47. Qa1 $17) 47... a5 $1 {[%emt 0:00:00] White must now prevent ...a4.} 48. Rh7 {[%emt 0:00:00]} a4 {[%emt 0:00:00]} (48... Rf8 49. Qh6 Qa3 50. Qg7 $15) 49. Rxf7+ {[%emt 0:00:00] [#]} Kb8 {[%emt 0:00:00]} (49... Ka6 $1 $19 {is more deadly. aiming for ...a3.} 50. Rc7 Kb5) 50. Nf5 $2 {[%emt 0:00:00]} (50. Qh6 $17 a3 51. Rh7) 50... a3 {[%emt 0:00:00] Hoping for ...Qb2.} (50... exf5 $2 51. e6 Nc8 52. Qf4+ Ka8 53. Qc7 $19) 51. Nd6 {[%emt 0:00:00]} a2 {[%emt 0:00:00]} 52. Rg7 {[%emt 0:03:58]} (52. Rb7+ Ka8 53. Rh7 Na4 $19) 52... Na5 $2 {[%emt 0:01:56]} (52... Qa4 $19 {and Black stays clearly on top.} 53. Qb2 Nb4 54. Rb7+ (54. Qxb4 $2 Qxb4 55. cxb4 Rh8 $19) 54... Ka8 55. Rxb6 a1=Q 56. Rxb4 Qa7) 53. Nfe8 $2 {[%emt 0:01:00][%mdl 8192]} (53. Qg5 $17 {nothing else works.} a1=Q 54. Nxd5) 53... Nc8 {[%emt 0:01:01] ...Qb1 would be deadly.} 54. Nc7 {[%emt 0:00:34]} Nxd6 {[%emt 0:01:35]} 55. Na6+ {[%emt 0:00:48]} Ka8 {[%emt 0:00:03]} 56. exd6 {[%emt 0:00:44]} (56. Nc7+ Ka7 57. exd6 (57. Nxe6+ $2 Ndb7 $19)) 56... Nb7 $4 {[%emt 0:00:16][%mdl 8192]} ({Not} 56... Rxd6 57. Nc7+ Kb8 58. Qf4 $14) (56... Qb1 $19 57. Nc7+ Kb7 58. Nxe6+ Kb8 59. Qxb1+ axb1=Q 60. Nxd8 Qe4+ 61. Kf1 Qh1+ 62. Ke2 Qh5+ 63. Kf1 Qh8) 57. Nc5 $18 {[%emt 0:00:35]} Nxc5 {[%emt 0:00:22]} 58. dxc5 {[%emt 0:00:01][%cal Bd4c5,Bc5c6,Bc6c7][%mdl 4128] Endgame White threatens c6 and mate. KQR-KQR} Qa4 {[%emt 0:00:35] [#] Inhibits c6.} 59. c6 $1 {[%emt 0:00:47][%mdl 512] White mates.} a1=Q {[%emt 0:00:21]} (59... Rxd6 60. Qh6) 60. c7 {[%emt 0:00:07][%cal Rc7d8]} Rc8 {[%emt 0:03:16]} 61. d7 {[%emt 0:00:19]} Kb7 {[%emt 0:00:03]} 62. dxc8=Q+ {[%emt 0:01:17]} Kxc8 {[%emt 0:00:03]} 63. Rg8+ {[%emt 0:00:28]} Kxc7 {[%emt 0:00:03]} 64. Qf4+ {[%emt 0:00:08]} Kb7 {[%emt 0:01:33]} 65. Rb8+ {[%emt 0:00:22]} Kc6 {[%emt 0:00:06]} 66. Rc8+ {[%emt 0:00:05] What a fight! A superb game by Galburd.   Weighted Error Value: White=0.40/Black=0.49} 1-0

[Event "Israeli Team-ch 2023"]
[Site "Petah Tikva"]
[Date "2023.01.13"]
[Round "2.36"]
[White "Aharonovich, Itamar"]
[Black "Katkov, Michelle"]
[Result "1-0"]
[ECO "E15"]
[WhiteElo "2327"]
[BlackElo "2220"]
[Annotator "TA"]
[PlyCount "111"]
[EventDate "2023.01.13"]
[EventCountry "ISR"]
[SourceTitle "playchess.com"]
[Source "ChessBase"]
[SourceQuality "1"]
[TimeControl "40/5400+30:1800+30"]

{[%evp 15,111,30,29,-2,16,-3,0,0,43,51,71,66,56,48,57,47,44,50,50,43,53,48,64,52,58,46,93,87,199,202,183,198,195,199,195,182,194,194,193,193,171,169,209,199,210,220,229,234,258,261,258,254,255,262,258,262,262,278,481,472,465,461,540,527,527,524,516,513,865,447,445,451,447,456,446,434,444,441,432,386,336,336,547,493,980,652,1108,836,1092,1088,1056,1052,966,934,1318,1229,926,926]} 1. d4 {[%emt 0:00:07]} Nf6 {[%emt 0:00:16]} 2. c4 {[%emt 0:00:41]} e6 {[%emt 0:00:06]} 3. Nf3 {[%emt 0:00:28]} b6 {[%emt 0:00:34]} 4. g3 {[%emt 0:00:17]} Bb4+ {[%emt 0:00:52]} 5. Bd2 {[%emt 0:00:44]} a5 {[%emt 0:00:06]} 6. Bg2 {[%emt 0:00:34]} O-O {[%emt 0:00:11]} 7. O-O {[%emt 0:01:27]} Ba6 {[%emt 0:00:16]} 8. Ne5 {[%emt 0:00:44]} Ra7 {[%emt 0:02:23]} 9. Qc2 {[%emt 0:00:58] E15: Queen's Indian: 4 g3 sidelines, 4 g3 Ba6 and 4 g3 Bb7 early deviations.} (9. Bxb4 $5 axb4 10. Qa4 $14 (10. Nd2 d6 $14)) 9... c5 {[%emt 0:07:36]} 10. dxc5 {[%emt 0:03:10]} Bxc5 {[%emt 0:01:16] [#]} 11. Rd1 $146 {[%emt 0:10:59] The position is equal.} ({Predecessor:} 11. Nd3 Be7 12. Bg5 Nc6 13. Nd2 d5 14. Bxf6 Bxf6 15. cxd5 Nd4 16. Qd1 exd5 17. Nf3 {½-½ Orlinkov,M (2388)-Kovalevskaya,E (2460) Moscow Aeroflot op-B 2006 (2)}) 11... d6 {[%emt 0:07:51]} 12. Nd3 {[%emt 0:01:47]} Qc7 {[%emt 0:05:13][%cal Oa6c4]} 13. Nxc5 {[%emt 0:08:22]} (13. b3 {is more complex.} Bb7 14. Nc3 Bxg2 15. Kxg2 Bd4 16. Nb2) 13... Qxc5 {[%emt 0:06:50]} 14. Be3 {[%emt 0:01:02]} Qxc4 {[%emt 0:04:29]} 15. Qxc4 {[%emt 0:02:31]} Bxc4 {[%emt 0:00:07]} 16. Rxd6 {[%emt 0:00:48]} Rd7 {[%emt 0:03:45]} 17. Rxd7 {[%emt 0:01:36]} Nbxd7 {[%emt 0:00:40]} 18. Nc3 {[%emt 0:00:05]} Rc8 {[%emt 0:04:53]} 19. Rd1 {[%emt 0:13:29][%cal Og3g4]} Kf8 {[%emt 0:05:09]} 20. h3 {[%emt 0:03:48]} b5 {[%emt 0:03:48]} (20... Ke7 $14) 21. Rc1 $1 $16 {[%emt 0:01:15][%cal Oc3b5] White is more active. Black is on the road to losing.} b4 {[%emt 0:05:34] [#]} (21... Bd5 $16 {might work better.}) 22. Nb5 $1 $18 {[%emt 0:01:32][%mdl 512] Nd6 is the strong threat.} Rb8 {[%emt 0:06:17]} 23. Rxc4 {[%emt 0:02:50]} Rxb5 {[%emt 0:00:07]} 24. Rc8+ {[%emt 0:01:23]} Ke7 {[%emt 0:00:13]} 25. Bc6 {[%emt 0:03:28] Repels Nd5} Re5 {[%emt 0:06:23]} 26. Kf1 {[%emt 0:02:10]} Nd5 {[%emt 0:03:54]} 27. Bd4 {[%emt 0:01:19] A strong pair of Bishops.} Rh5 {[%emt 0:01:18]} 28. Ra8 {[%emt 0:08:38] Ra7 would be deadly.} (28. Bxg7 N5b6 29. Rh8 f6 $16) 28... Kd6 {[%emt 0:05:53]} 29. Bxd7 {[%emt 0:05:15]} Kxd7 {[%emt 0:00:22][%mdl 4096] Endgame KRB-KRN} 30. Ra7+ {[%emt 0:00:36]} (30. Rxa5 $2 Ne3+ 31. fxe3 Rxa5 32. Bxg7 Rg5 $19) (30. Bxg7 Nc7 31. Ra7 Kc6) 30... Kc6 {[%emt 0:04:40]} 31. Rxf7 {[%emt 0:02:50]} (31. Rxa5 $2 {loses.} Ne3+ 32. Bxe3 Rxa5 $19) (31. Bxg7 $6 Nc7 32. Bd4 b3) 31... e5 {[%emt 0:02:11]} 32. g4 {[%emt 0:03:17]} Rg5 {[%emt 0:00:35] [#]} 33. Ba7 {[%emt 0:00:30]} h5 {[%emt 0:02:24]} 34. f3 {[%emt 0:03:48]} hxg4 {[%emt 0:02:16]} 35. hxg4 {[%emt 0:00:07]} ({Much less strong is} 35. fxg4 $6 a4 36. Kf2 Nf4 $18) 35... a4 {[%emt 0:01:37]} 36. e4 {[%emt 0:02:22]} Nf6 {[%emt 0:00:30]} (36... Nb6 37. Re7 Nc4 38. Re6+ Kd7) 37. Be3 {[%emt 0:00:37]} Rg6 {[%emt 0:00:10]} 38. Ra7 {[%emt 0:00:19]} Kb5 {[%emt 0:01:10]} 39. Rb7+ {[%emt 0:00:07]} Kc4 {[%emt 0:02:05]} 40. Ke2 {[%emt 0:04:09]} Ne8 {[%emt 0:00:56]} 41. Bd2 {[%emt 0:30:09]} b3 {[%emt 0:34:39]} (41... Ra6 $142 42. Rxb4+ Kc5) 42. Rb4+ {[%emt 0:00:28]} Kc5 {[%emt 0:00:07]} 43. Rxa4 {[%emt 0:00:05]} ({Not} 43. axb3 axb3 44. Rxb3 Re6 $18) 43... bxa2 {[%emt 0:00:20]} 44. Rxa2 {[%emt 0:00:15]} Nc7 {[%emt 0:00:00]} 45. Bc3 {[%emt 0:00:00]} Re6 {[%emt 0:02:58]} 46. Ra7 {[%emt 0:00:00]} Kb6 {[%emt 0:00:00]} 47. Ra1 {[%emt 0:00:00] Hoping for Ba5+.} Nb5 {[%emt 0:00:00]} 48. Rd1 {[%emt 0:00:00]} Nxc3+ {[%emt 0:00:00]} (48... Nc7 49. Be1 g6) 49. bxc3 {[%emt 0:00:00][%cal Bb2c3,Bc3c4][%mdl 32] KR-KR. White is clearly winning.} Kc5 {[%emt 0:00:00]} (49... Kc7 $142 50. Rd5 Re7) 50. Rd8 {[%emt 0:00:00]} Kc4 {[%emt 0:00:00]} 51. Rc8+ {[%emt 0:00:00]} Kb3 {[%emt 0:00:00]} 52. c4 {[%emt 0:00:00]} Kc3 {[%emt 0:00:00]} 53. Ke3 {[%emt 0:00:00]} Re7 {[%emt 0:00:00]} 54. g5 {[%emt 0:00:00]} Re6 {[%emt 0:00:00]} 55. Rc7 {[%emt 0:00:00]} g6 {[%emt 0:00:00]} 56. Rf7 {[%emt 0:00:00] Weighted Error Value: White=0.20 (precise) /Black=0.30} 1-0

[Event "Israeli Team-ch 2023"]
[Site "Petah Tikva"]
[Date "2023.01.20"]
[Round "3.1"]
[White "Volokitin, Andrei"]
[Black "Yaniv, Yuval"]
[Result "1-0"]
[ECO "B56"]
[WhiteElo "2666"]
[BlackElo "2366"]
[Annotator "TA"]
[PlyCount "65"]
[EventDate "2023.01.13"]
[EventCountry "ISR"]
[SourceTitle "playchess.com"]
[Source "ChessBase"]
[SourceQuality "1"]
[TimeControl "40/5400+30:1800+30"]

{[%evp 11,65,35,34,25,45,46,51,43,41,45,38,24,25,10,52,44,47,37,88,56,58,54,58,47,48,48,89,94,236,221,194,26,26,25,25,33,39,27,48,52,56,48,56,31,33,33,36,36,421,418,576,533,528,516,524,513]} 1. e4 {[%emt 0:01:14]} c5 {[%emt 0:00:32]} 2. Nf3 {[%emt 0:01:16][%cal Bg1f3,Bf3d4,Bd4b5][%mdl 32]} d6 {[%emt 0:00:12]} 3. d4 {[%emt 0:00:12]} cxd4 {[%emt 0:00:07]} 4. Nxd4 {[%emt 0:00:03]} Nf6 {[%emt 0:00:08]} 5. Nc3 {[%emt 0:00:04]} Bd7 {[%emt 0:00:34]} 6. Bg5 {[%emt 0:03:22]} e6 {[%emt 0:00:19]} 7. Ndb5 {[%emt 0:02:42] B56: Classical Sicilian: Unusual Lines.} Bc6 {[%emt 0:01:25] 7...Bxb5 is the fancy move.} 8. Bxf6 {[%emt 0:07:09]} gxf6 {[%emt 0:00:30]} 9. Qh5 {[%emt 0:00:14] Hoping for Bc4. White is slightly better.} a6 $1 {[%emt 0:00:22] aiming for ...Qb6.} 10. Nd4 {[%emt 0:00:16]} Bd7 {[%emt 0:00:13] [#]} 11. Be2 $146 {[%emt 0:30:17]} ({Predecessor:} 11. O-O-O b5 12. f4 b4 13. Nce2 Qb6 14. e5 dxe5 15. fxe5 Qa5 16. Kb1 Qxe5 17. Qf3 {1-0 Vocaturo,D (2620)-Kriebel,T (2520) EU-ch 19th Batumi 2018 (10)}) 11... Nc6 {[%emt 0:06:06]} 12. Nb3 {[%emt 0:04:05]} b5 {[%emt 0:13:35]} 13. a3 {[%emt 0:02:12]} Qb6 {[%emt 0:03:07]} 14. O-O {[%emt 0:03:10]} Nd4 {[%emt 0:07:15]} ({Black should play} 14... Ne5 $14) 15. Nxd4 {[%emt 0:07:29]} Qxd4 {[%emt 0:00:07]} 16. Kh1 {[%emt 0:00:05]} Qc5 {[%emt 0:08:28]} 17. Qh3 {[%emt 0:00:37]} Rc8 {[%emt 0:05:20]} 18. f4 {[%emt 0:17:05]} a5 {[%emt 0:02:57]} 19. f5 {[%emt 0:05:31] White is more active.} b4 {[%emt 0:06:56] [#]} (19... Qe5 $16) 20. axb4 $1 $18 {[%emt 0:00:09] Black is weak on the light squares} axb4 {[%emt 0:00:05]} 21. fxe6 $2 {[%emt 0:01:30]} (21. Bh5 $18 Ke7 22. fxe6 Bxe6 23. Nd5+ Qxd5 24. exd5 Bxh3 25. gxh3) 21... Bxe6 $11 {[%emt 0:03:54]} 22. Na4 {[%emt 0:00:55]} Bxh3 {[%emt 0:03:57]} 23. Nxc5 {[%emt 0:00:06]} Rxc5 {[%emt 0:12:24]} 24. gxh3 {[%emt 0:00:07]} Bg7 {[%emt 0:00:26]} 25. Ra8+ {[%emt 0:09:29]} Kd7 {[%emt 0:00:07]} 26. Ra7+ {[%emt 0:00:56]} Rc7 $1 {[%emt 0:00:24]} 27. Bg4+ {[%emt 0:01:33]} Kd8 {[%emt 0:01:51]} 28. Rfa1 {[%emt 0:00:50]} f5 {[%emt 0:02:18][%mdl 64] Discovered Attack} 29. exf5 {[%emt 0:00:07][%cal Be4f5,Bf5f6][%mdl 32]} Bxb2 $2 {[%emt 0:02:58][%mdl 8192] [#]} (29... h5 $14 30. Rxc7 Kxc7) 30. Ra8+ $1 $18 {[%emt 0:00:20]} Rc8 {[%emt 0:04:39] [#]} 31. f6 $1 {[%emt 0:00:14][%csl Gg4][%cal Ra8c8][%mdl 512] White is clearly winning.} Kc7 {[%emt 0:00:09]} 32. R1a7+ {[%emt 0:00:36][%mdl 64] Skewer} ({Stronger than} 32. Bxc8 Bxa1 $15) 32... Kb6 {[%emt 0:00:09]} 33. Ra6+ {[%emt 0:00:13] Weighted Error Value: White=0.15 (very precise) /Black=0.46} ({Weaker is} 33. Rxc8 Rxc8 34. Rxf7 Rxc2 $15) 1-0